Workbook

Sheet 支出
B3: 产品发布会
B4: 费用详细信息
B7: 总支出 | C7: 估计 | D7: 实际 | F7: 节目 | G7: 估计 | H7: 实际
C8: =SiteExpenses[[#Totals],[估计]]+DecorationsExpenses[[#Totals],[估计]]+PublicityExpenses[[#Totals],[估计]]+MiscellaneousExpenses[[#Totals],[估计]]+RefreshmentsExpenses[[#Totals],[估计]]+ProgramExpenses[[#Totals],[估计]]+PrizesExpenses[[#Totals],[估计]] -> ¥2,090.00 | D8: =SiteExpenses[[#Totals],[实际]]+DecorationsExpenses[[#Totals],[实际]]+PublicityExpenses[[#Totals],[实际]]+MiscellaneousExpenses[[#Totals],[实际]]+RefreshmentsExpenses[[#Totals],[实际]]+ProgramExpenses[[#Totals],[实际]]+PrizesExpenses[[#Totals],[实际]] -> ¥1,640.00 | F8: 执行者 | G8: ¥750.00 | H8: ¥700.00
F9: 扬声器 | G9: ¥150.00 | H9: ¥0.00
F10: 差旅
B11: 场地 | C11: 估计 | D11: 实际 | F11: 住宿
B12: 会议室和大厅费用 | C12: ¥500.00 | D12: ¥450.00 | F12: 其他
B13: 现场人员 | F13: 汇总 | G13: =SUBTOTAL(109,ProgramExpenses[估计]) -> ¥900.00 | H13: =SUBTOTAL(109,ProgramExpenses[实际]) -> ¥700.00
B14: 设备
B15: 桌椅 | F15: 宣传 | G15: 估计 | H15: 实际
B16: 汇总 | C16: =SUBTOTAL(109,SiteExpenses[估计]) -> ¥500.00 | D16: =SUBTOTAL(109,SiteExpenses[实际]) -> ¥450.00 | F16: 图形工作
F17: 影印/打印 | G17: ¥20.00 | H17: ¥20.00
B18: 装饰 | C18: 估计 | D18: 实际 | F18: 邮费
B19: 花卉 | C19: ¥200.00 | D19: ¥100.00 | F19: 汇总 | G19: =SUBTOTAL(109,PublicityExpenses[估计]) -> ¥20.00 | H19: =SUBTOTAL(109,PublicityExpenses[实际]) -> ¥20.00
B20: 蜡烛
B21: 照明 | F21: 奖品 | G21: 估计 | H21: 实际
B22: 气球 | F22: 绶带/奖品
B23: 纸 | F23: 礼品 | G23: ¥100.00 | H23: ¥100.00
B24: 汇总 | C24: =SUBTOTAL(109,DecorationsExpenses[估计]) -> ¥200.00 | D24: =SUBTOTAL(109,DecorationsExpenses[实际]) -> ¥100.00 | F24: 汇总 | G24: =SUBTOTAL(109,PrizesExpenses[估计]) -> ¥100.00 | H24: =SUBTOTAL(109,PrizesExpenses[实际]) -> ¥100.00
B26: 茶点 | C26: 估计 | D26: 实际 | F26: 杂项 | G26: 估计 | H26: 实际
B27: 食物 | F27: 电话 | G27: ¥50.00 | H27: ¥50.00
B28: 饮料 | C28: ¥220.00 | D28: ¥120.00 | F28: 交通 | G28: ¥20.00 | H28: ¥20.00
B29: 亚麻布 | C29: ¥80.00 | D29: ¥80.00 | F29: 文具
B30: 服务人员和小费 | F30: 传真服务
B31: 汇总 | C31: =SUBTOTAL(109,RefreshmentsExpenses[估计]) -> ¥300.00 | D31: =SUBTOTAL(109,RefreshmentsExpenses[实际]) -> ¥200.00 | F31: 汇总 | G31: =SUBTOTAL(109,MiscellaneousExpenses[估计]) -> ¥70.00 | H31: =SUBTOTAL(109,MiscellaneousExpenses[实际]) -> ¥70.00

Sheet 收入
B3: =支出!B3 -> 产品发布会
B4: 收入详细信息
B7: 总收入 | C7: 估计 | D7: 实际
C8: =SUM(Admissions[[#Totals],[估计收益]],AdsInProgram[[#Totals],[估计收益]],ExhibitorsAndVendors[[#Totals],[估计收益]],SaleOfItems[[#Totals],[估计收益]]) -> ¥4,450.00 | D8: =SUM(Admissions[[#Totals],[实际收益]],AdsInProgram[[#Totals],[实际收益]],ExhibitorsAndVendors[[#Totals],[实际收益]],SaleOfItems[[#Totals],[实际收益]]) -> ¥4,170.00
B10: 入场券
B11: 类型 | C11: 估计 | D11: 实际 | E11: 价格 | F11: 估计收益 | G11: 实际收益
B12: 成人 | C12: 30 | D12: 25 | E12: ¥20.00 | F12: =C12*E12 -> ¥600.00 | G12: =D12*E12 -> ¥500.00
B13: 儿童 | C13: 20 | D13: 22 | E13: ¥10.00 | F13: =C13*E13 -> ¥200.00 | G13: =D13*E13 -> ¥220.00
B14: 其他 | C14: 10 | D14: 10 | E14: ¥10.00 | F14: =C14*E14 -> ¥100.00 | G14: =D14*E14 -> ¥100.00
B15: 汇总 | C15: =SUBTOTAL(109,Admissions[估计]) -> 60 | D15: =SUBTOTAL(109,Admissions[实际]) -> 57 | F15: =SUBTOTAL(109,Admissions[估计收益]) -> ¥900.00 | G15: =SUBTOTAL(109,Admissions[实际收益]) -> ¥820.00
B17: 节目广告
B18: 类型 | C18: 估计 | D18: 实际 | E18: 价格 | F18: 估计收益 | G18: 实际收益
B19: 封面 | C19: 2 | D19: 4 | E19: ¥50.00 | F19: =C19*E19 -> ¥100.00 | G19: =D19*E19 -> ¥200.00
B20: 半页 | C20: 2 | D20: 2 | E20: ¥30.00 | F20: =C20*E20 -> ¥60.00 | G20: =D20*E20 -> ¥60.00
B21: 四分之一版面 | C21: 2 | D21: 2 | E21: ¥20.00 | F21: =C21*E21 -> ¥40.00 | G21: =D21*E21 -> ¥40.00
B22: 汇总 | C22: =SUBTOTAL(109,AdsInProgram[估计]) -> 6 | D22: =SUBTOTAL(109,AdsInProgram[实际]) -> 8 | F22: =SUBTOTAL(109,AdsInProgram[估计收益]) -> ¥200.00 | G22: =SUBTOTAL(109,AdsInProgram[实际收益]) -> ¥300.00
B24: 参展商/供应商
B25: 类型 | C25: 估计 | D25: 实际 | E25: 价格 | F25: 估计收益 | G25: 实际收益
B26: 大型展厅 | C26: 5 | D26: 5 | E26: ¥300.00 | F26: =C26*E26 -> ¥1,500.00 | G26: =D26*E26 -> ¥1,500.00
B27: 中型展厅 | C27: 5 | D27: 4 | E27: ¥200.00 | F27: =C27*E27 -> ¥1,000.00 | G27: =D27*E27 -> ¥800.00
B28: 小型展厅 | C28: 1 | D28: 0 | E28: ¥100.00 | F28: =C28*E28 -> ¥100.00 | G28: =D28*E28 -> ¥0.00
B29: 汇总 | C29: =SUBTOTAL(109,ExhibitorsAndVendors[估计]) -> 11 | D29: =SUBTOTAL(109,ExhibitorsAndVendors[实际]) -> 9 | F29: =SUBTOTAL(109,ExhibitorsAndVendors[估计收益]) -> ¥2,600.00 | G29: =SUBTOTAL(109,ExhibitorsAndVendors[实际收益]) -> ¥2,300.00
B31: 商品销售
B32: 类型 | C32: 估计 | D32: 实际 | E32: 价格 | F32: 估计收益 | G32: 实际收益
B33: 商品 1 | C33: 2 | D33: 2 | E33: ¥150.00 | F33: =C33*E33 -> ¥300.00 | G33: =D33*E33 -> ¥300.00
B34: 物品​​ 2 | C34: 5 | D34: 5 | E34: ¥50.00 | F34: =C34*E34 -> ¥250.00 | G34: =D34*E34 -> ¥250.00
B35: 物品​​ 3 | C35: 5 | D35: 5 | E35: ¥20.00 | F35: =C35*E35 -> ¥100.00 | G35: =D35*E35 -> ¥100.00
B36: 物品 4 | C36: 5 | D36: 5 | E36: ¥20.00 | F36: =C36*E36 -> ¥100.00 | G36: =D36*E36 -> ¥100.00
B37: 汇总 | C37: =SUBTOTAL(109,SaleOfItems[估计]) -> 17 | D37: =SUBTOTAL(109,SaleOfItems[实际]) -> 17 | F37: =SUBTOTAL(109,SaleOfItems[估计收益]) -> ¥750.00 | G37: =SUBTOTAL(109,SaleOfItems[实际收益]) -> ¥750.00

Sheet 损益汇总
B3: =支出!B3 -> 产品发布会
B4: 损益汇总
B7: 支出汇总 | C7: 估计 | D7: 实际 | F7: 实际支出 | L7: 排名 | M7: 支出 | N7: 估计 | O7: 实际 | P7: 排名值
B8: =VLOOKUP(1,$L$8:$O$14,2,FALSE) -> 节目 | C8: =VLOOKUP(1,$L$8:$O$14,3,FALSE) -> ¥900.00 | D8: =VLOOKUP(1,$L$8:$O$14,4,FALSE) -> ¥700.00 | L8: =_xlfn.RANK.AVG(P8,$P$8:$P$14) -> 2 | M8: 场地 | N8: =SiteExpenses[[#Totals],[估计]] -> ¥500 | O8: =SiteExpenses[[#Totals],[实际]] -> ¥450 | P8: =O8+ROW(O8)/10000 -> 450.0008
B9: =VLOOKUP(2,$L$8:$O$14,2,FALSE) -> 场地 | C9: =VLOOKUP(2,$L$8:$O$14,3,FALSE) -> ¥500.00 | D9: =VLOOKUP(2,$L$8:$O$14,4,FALSE) -> ¥450.00 | L9: 5 | M9: 装饰 | N9: =DecorationsExpenses[[#Totals],[估计]] -> ¥200 | O9: =DecorationsExpenses[[#Totals],[实际]] -> ¥100 | P9: =O9+ROW(O9)/10000 -> 100.0009
B10: =VLOOKUP(3,$L$8:$O$14,2,FALSE) -> 茶点 | C10: =VLOOKUP(3,$L$8:$O$14,3,FALSE) -> ¥300.00 | D10: =VLOOKUP(3,$L$8:$O$14,4,FALSE) -> ¥200.00 | L10: 3 | M10: 茶点 | N10: =RefreshmentsExpenses[[#Totals],[估计]] -> ¥300 | O10: =RefreshmentsExpenses[[#Totals],[实际]] -> ¥200 | P10: 200.0010
B11: =VLOOKUP(4,$L$8:$O$14,2,FALSE) -> 奖品 | C11: =VLOOKUP(4,$L$8:$O$14,3,FALSE) -> ¥100.00 | D11: =VLOOKUP(4,$L$8:$O$14,4,FALSE) -> ¥100.00 | L11: 1 | M11: 节目 | N11: =ProgramExpenses[[#Totals],[估计]] -> ¥900 | O11: =ProgramExpenses[[#Totals],[实际]] -> ¥700 | P11: 700.0011
B12: =VLOOKUP(5,$L$8:$O$14,2,FALSE) -> 装饰 | C12: =VLOOKUP(5,$L$8:$O$14,3,FALSE) -> ¥200.00 | D12: =VLOOKUP(5,$L$8:$O$14,4,FALSE) -> ¥100.00 | L12: 7 | M12: 宣传 | N12: =PublicityExpenses[[#Totals],[估计]] -> ¥20 | O12: =PublicityExpenses[[#Totals],[实际]] -> ¥20 | P12: 20.0012
B13: =VLOOKUP(6,$L$8:$O$14,2,FALSE) -> 杂项 | C13: =VLOOKUP(6,$L$8:$O$14,3,FALSE) -> ¥70.00 | D13: =VLOOKUP(6,$L$8:$O$14,4,FALSE) -> ¥70.00 | L13: 4 | M13: 奖品 | N13: =PrizesExpenses[[#Totals],[估计]] -> ¥100 | O13: =PrizesExpenses[[#Totals],[实际]] -> ¥100 | P13: 100.0013
B14: =VLOOKUP(7,$L$8:$O$14,2,FALSE) -> 宣传 | C14: =VLOOKUP(7,$L$8:$O$14,3,FALSE) -> ¥20.00 | D14: =VLOOKUP(7,$L$8:$O$14,4,FALSE) -> ¥20.00 | L14: 6 | M14: 杂项 | N14: =MiscellaneousExpenses[[#Totals],[估计]] -> ¥70 | O14: =MiscellaneousExpenses[[#Totals],[实际]] -> ¥70 | P14: 70.0014
B15: 汇总 | C15: =SUBTOTAL(109,ExpensesSummary[估计]) -> ¥2,090.00 | D15: =SUBTOTAL(109,ExpensesSummary[实际]) -> ¥1,640.00
B17: 收入汇总 | C17: 估计 | D17: 实际 | F17: 实际收益 | L17: 排名 | M17: 收入 | N17: 估计 | O17: 实际 | P17: 排名值
B18: =VLOOKUP(1,$L$18:$O$21,2,FALSE) -> 参展商/供应商 | C18: =VLOOKUP(1,$L$18:$O$21,3,FALSE) -> ¥2,600.00 | D18: =VLOOKUP(1,$L$18:$O$21,4,FALSE) -> ¥2,300.00 | L18: =_xlfn.RANK.AVG(P18,$P$18:$P$21) -> 2 | M18: 入场券 | N18: =Admissions[[#Totals],[估计收益]] -> ¥900 | O18: =Admissions[[#Totals],[实际收益]] -> ¥820 | P18: =O18+ROW(O18)/10000 -> 820.0018
B19: =VLOOKUP(2,$L$18:$O$21,2,FALSE) -> 入场券 | C19: =VLOOKUP(2,$L$18:$O$21,3,FALSE) -> ¥900.00 | D19: =VLOOKUP(2,$L$18:$O$21,4,FALSE) -> ¥820.00 | L19: =_xlfn.RANK.AVG(P19,$P$18:$P$21) -> 4 | M19: 节目广告 | N19: =AdsInProgram[[#Totals],[估计收益]] -> ¥200 | O19: =AdsInProgram[[#Totals],[实际收益]] -> ¥300 | P19: 300.0019
B20: 商品销售 | C20: =VLOOKUP(3,$L$18:$O$21,3,FALSE) -> ¥750.00 | D20: =VLOOKUP(3,$L$18:$O$21,4,FALSE) -> ¥750.00 | L20: 1 | M20: 参展商/供应商 | N20: =ExhibitorsAndVendors[[#Totals],[估计收益]] -> ¥2,600 | O20: =ExhibitorsAndVendors[[#Totals],[实际收益]] -> ¥2,300 | P20: 2300.0020
B21: =VLOOKUP(4,$L$18:$O$21,2,FALSE) -> 节目广告 | C21: =VLOOKUP(4,$L$18:$O$21,3,FALSE) -> ¥200.00 | D21: =VLOOKUP(4,$L$18:$O$21,4,FALSE) -> ¥300.00 | L21: 3 | M21: 商品销售 | N21: =SaleOfItems[[#Totals],[估计收益]] -> ¥750 | O21: =SaleOfItems[[#Totals],[实际收益]] -> ¥750 | P21: 750.0021
B22: 汇总 | C22: =SUBTOTAL(109,IncomeSummary[估计]) -> ¥4,450.00 | D22: =SUBTOTAL(109,IncomeSummary[实际]) -> ¥4,170.00
B24: 损益汇总 | C24: 估计 | D24: 实际
B25: 总收入 | C25: =IncomeSummary[[#Totals],[估计]] -> ¥4,450.00 | D25: =IncomeSummary[[#Totals],[实际]] -> ¥4,170.00
B26: 总支出 | C26: =ExpensesSummary[[#Totals],[估计]] -> ¥2,090.00 | D26: =ExpensesSummary[[#Totals],[实际]] -> ¥1,640.00
B27: 利润（或损失） | C27: =C25-C26 -> ¥2,360.00 | D27: =D25-D26 -> ¥2,530.00
B29: 支出与利润（损失）比率 | E29: 估计与实际成本
